bitfinex-derivatives/quotes_SOLF0:USTF0_20251208
["timestamp","ask_amount","ask_price","bid_price","bid_amount"]
[1765220016512,3.32719814,134.85,134.81,2.45554542]
[1765220016714,0.05263135,134.84,134.81,2.45554542]
[1765220016914,3.33263135,134.84,134.81,2.45554542]
[1765220018512,3.33263135,134.84,134.77,103.878]
[1765220018513,0.05263135,134.84,134.82,6.6753]
[1765220018708,3.33263135,134.84,134.82,2.45554542]
[1765220018904,0.05263135,134.84,134.82,2.45554542]
[1765220019219,0.05263135,134.84,134.82,9.13094542]
[1765220020613,3.28,134.89,134.84,6.6744]
[1765220020918,3.28,134.89,134.85,2.45554542]
[1765220021522,3.33328954,134.88,134.86,0.05263135]
[1765220023013,10.00608954,134.88,134.86,0.05263135]
[1765220023214,3.28,134.87,134.86,0.05263135]
[1765220024418,0.05328954,134.88,134.86,2.50817677]
[1765220026711,3.33328954,134.88,134.86,2.50817677]
[1765220027520,0.05328954,134.88,134.86,2.50817677]
[1765220027724,3.33328954,134.88,134.86,2.50817677]
[1765220028321,3.33328954,134.88,134.86,0.05263135]
[1765220028521,8.83467673,134.87,134.86,0.05263135]
[1765220029025,3.23,134.87,134.86,0.05263135]
[1765220029427,8.8394095,134.87,134.86,0.05263135]
[1765220029725,3.23,134.86,134.83,2.45554542]
[1765220032324,3.23,134.86,134.82,2.45554542]
[1765220032525,3.23,134.84,134.82,2.45554542]
[1765220032715,3.27833802,134.84,134.82,2.45554542]
[1765220034932,3.27833802,134.84,134.8,65.49554542]
[1765220035927,3.23,134.82,134.8,65.49554542]
[1765220036230,3.23,134.82,134.8,63.04]
[1765220036824,3.23,134.8,134.67,107.74963014]
[1765220037029,0.05510503,134.75,134.72,2.45554542]
[1765220037225,3.28510503,134.75,134.7,2.45554542]
[1765220037426,0.05510503,134.75,134.74,2.45554542]
[1765220038226,0.05510503,134.75,134.72,2.45554542]
[1765220038425,0.05510503,134.75,134.68,166.9891]
[1765220038426,3.28510503,134.75,134.7,2.45554542]
[1765220039034,3.23,134.74,134.7,2.45554542]
[1765220039335,3.23,134.74,134.69,2.45554542]
[1765220039538,0.05510503,134.75,134.71,2.45554542]
[1765220039734,3.28510503,134.75,134.71,2.45554542]
[1765220040132,3.28510503,134.75,134.68,63.04]
[1765220040334,3.23,134.73,134.7,2.45554542]
[1765220040832,3.23,134.73,134.68,63.04]
[1765220041051,3.28063495,134.72,134.67,3.79373014]
[1765220041346,3.23,134.67,134.61,2.45554542]
[1765220041530,3.23,134.66,134.61,2.45554542]
[1765220041730,2.45554542,134.67,134.59,2.45554542]
[1765220041731,3.23,134.64,134.59,2.45554542]
[1765220042026,3.23,134.64,134.57,69.7478]
[1765220042027,3.23,134.64,134.58,2.45554542]
[1765220042228,3.23,134.64,134.53,6.6898]
[1765220042229,3.28012872,134.62,134.53,6.6898]
[1765220042431,0.05482355,134.59,134.51,2.45554542]
[1765220042636,3.23,134.58,134.55,2.45554542]
[1765220042828,0.05482355,134.59,134.52,64.35324761]
[1765220043034,3.28482355,134.59,134.52,63.06]
[1765220044146,3.28482355,134.59,134.49,104.0941]
[1765220044349,0.04701688,134.55,134.51,104.0833]
[1765220044550,0.04701688,134.55,134.51,110.7743]
[1765220045240,3.23,134.59,134.53,104.0661]
[1765220045443,3.13,134.62,134.53,104.0661]
[1765220045847,3.13,134.62,134.55,6.6889]
[1765220046054,3.13,134.62,134.55,69.7889]
[1765220046450,3.17817329,134.6,134.57,0.04840466]
[1765220051656,0.04817329,134.6,134.57,0.04840466]
[1765220053451,3.17817329,134.6,134.57,0.04840466]
[1765220054055,9.86507329,134.6,134.57,0.04840466]
[1765220054356,3.13,134.59,134.57,0.04840466]
[1765220059055,0.04817329,134.6,134.57,0.04840466]
[1765220060052,0.04817329,134.6,134.57,6.73610466]
[1765220060263,0.04817329,134.6,134.58,63.16]
[1765220060765,0.04817329,134.6,134.58,69.8474]
[1765220062565,3.25817329,134.6,134.57,0.04840466]
[1765220063562,3.21,134.59,134.57,0.04840466]
[1765220063765,0.04817329,134.6,134.57,0.04840466]
[1765220065158,3.25817329,134.6,134.57,0.04840466]
[1765220066663,3.25817329,134.6,134.58,63.16]
[1765220066852,3.25817329,134.6,134.57,0.04840466]
[1765220067050,3.25817329,134.6,134.58,63.16]
[1765220067455,3.25817329,134.6,134.57,0.04840466]
[1765220067653,3.25817329,134.6,134.57,63.20840466]
[1765220068463,0.04817329,134.6,134.57,63.20840466]
[1765220068860,0.04817329,134.6,134.57,69.89620466]
[1765220069065,0.04817329,134.6,134.57,63.20840466]
[1765220071467,0.04817329,134.6,134.57,69.89630466]
[1765220071667,0.04817329,134.6,134.57,63.20840466]
[1765220072268,0.04817329,134.6,134.57,0.04840466]
[1765220072766,0.04817329,134.6,134.58,63.16]
[1765220073562,0.04817329,134.6,134.58,69.8474]
[1765220074770,3.21,134.66,134.59,104.0214]
[1765220075271,3.21,134.66,134.58,167.1848]
[1765220075769,3.26161947,134.63,134.61,0.04863602]
[1765220075973,3.21,134.67,134.62,63.16]
[1765220076166,3.21,134.65,134.63,0.04801602]
[1765220076574,8.73528072,134.64,134.63,0.04801602]
[1765220077466,3.21,134.62,134.6,63.16]
[1765220078066,3.21,134.62,134.58,6.6874]
[1765220078067,3.21,134.62,134.59,69.8469]
[1765220078373,0.0510714,134.62,134.59,69.8946403]
[1765220079468,6.59525964,134.66,134.6,104.0118]
[1765220079668,5.55204178,134.65,134.6,104.0118]
[1765220079869,8.76204178,134.64,134.58,6.6874]
[1765220080070,3.21,134.62,134.56,63.16]
[1765220080276,3.21,134.6,134.56,63.16]
[1765220080575,5.60599735,134.59,134.57,0.05552917]
[1765220080770,0.05395557,134.59,134.57,0.05552917]
[1765220081173,5.57659008,134.58,134.57,0.05552917]
[1765220089186,0.05395557,134.59,134.58,6.6876]
[1765220089386,5.64330033,134.59,134.58,6.6876]
[1765220090786,8.92330033,134.59,134.57,0.05552917]
[1765220090976,3.33395557,134.59,134.58,63.16]
[1765220091179,8.92468521,134.59,134.58,63.16]
[1765220092279,5.64468521,134.59,134.58,63.16]
[1765220093080,0.05395557,134.59,134.58,63.16]
[1765220099082,3.28,134.62,134.58,69.8474]
[1765220099278,8.46899434,134.65,134.58,63.16]
[1765220099483,5.59471911,134.64,134.58,63.16]
[1765220099789,5.59471911,134.63,134.58,63.16]
[1765220099991,3.28,134.64,134.6,6.6861]
[1765220100188,0.05495901,134.62,134.6,6.6861]
[1765220100390,3.13495901,134.62,134.59,0.04734439]
[1765220101179,0.05495901,134.62,134.59,0.04734439]
[1765220101991,0.05495901,134.62,134.6,6.6865]
[1765220102792,0.05495901,134.62,134.59,104.06624439]
[1765220102793,3.08,134.65,134.59,104.06624439]
[1765220102994,5.60358195,134.64,134.59,104.06624439]
[1765220103192,3.08,134.65,134.59,104.06624439]
[1765220103392,5.60478131,134.64,134.59,104.06624439]
[1765220103594,3.08,134.65,134.59,104.06624439]
[1765220103789,0.054697,134.63,134.6,104.0136]
[1765220104091,0.054697,134.63,134.62,6.6851]
[1765220104392,3.134697,134.63,134.62,63.16]
[1765220104888,12.68754004,134.63,134.59,0.04734439]
[1765220105088,9.67525964,134.61,134.59,0.04734439]
[1765220105291,3.08,134.59,134.55,2.47100076]
[1765220105594,8.68184228,134.58,134.55,9.16000076]
[1765220105785,3.08,134.58,134.55,9.16000076]
[1765220106381,3.08,134.58,134.56,6.6885]
[1765220106595,3.13001222,134.58,134.56,6.6885]
[1765220106995,3.13001222,134.58,134.55,0.05215962]
[1765220107698,3.08,134.56,134.55,0.05215962]
[1765220108095,3.08,134.57,134.55,0.05215962]
[1765220115497,3.13001222,134.58,134.55,6.74115962]
[1765220116297,5.59185352,134.6,134.56,63.16]
[1765220116502,3.08,134.59,134.56,63.16]
[1765220116693,3.08,134.59,134.54,63.16]
[1765220116891,3.08,134.58,134.54,63.16]
[1765220117294,0.05006617,134.57,134.55,0.04909227]
[1765220117494,3.08,134.56,134.55,0.04909227]
[1765220120890,8.66717141,134.56,134.47,146.59826111]
[1765220121091,3.14,134.54,134.47,63.16]
[1765220121299,3.14,134.52,134.47,63.16]
[1765220121504,3.14,134.52,134.49,6.6919]
[1765220121703,3.14,134.52,134.47,63.16]
[1765220121906,3.14,134.5,134.48,0.05563831]
[1765220122099,3.14,134.5,134.46,6.6931]
[1765220122304,3.14,134.5,134.44,63.18]
[1765220122708,3.14,134.5,134.45,110.01537983]
[1765220122906,3.14,134.5,134.46,104.1205]
[1765220123110,0.0522613,134.51,134.46,104.1205]
[1765220123111,0.0522613,134.51,134.48,5.88817983]
[1765220123309,0.0522613,134.51,134.48,69.06817983]
[1765220124000,0.0522613,134.51,134.48,63.18]
[1765220124201,3.1922613,134.51,134.48,63.18]
[1765220125815,0.0522613,134.51,134.48,63.18]
[1765220126417,0.0522613,134.51,134.49,6.6919]
[1765220126713,3.1922613,134.51,134.48,63.18]
[1765220128818,3.1922613,134.51,134.48,65.65569045]
[1765220130211,3.1922613,134.51,134.47,6.74903731]
[1765220130516,3.1922613,134.51,134.47,9.22472776]
[1765220130717,3.1922613,134.51,134.47,0.05613731]
[1765220130913,3.14,134.49,134.43,2.47569045]
[1765220131214,3.14,134.49,134.45,6.6939]
[1765220131716,3.14,134.49,134.43,2.47569045]
[1765220131919,3.14,134.46,134.45,0.05034785]
[1765220132919,5.61569045,134.46,134.41,63.2]
[1765220133212,3.14,134.45,134.36,104.1978]
[1765220133413,3.14,134.45,134.39,9.17249045]
[1765220133615,3.14,134.45,134.39,2.47569045]
[1765220134010,3.14,134.42,134.39,2.47569045]
[1765220134609,3.14,134.42,134.4,6.6963]
[1765220135214,3.14,134.36,134.28,104.2606]
[1765220135519,3.19292625,134.34,134.3,6.31585309]
[1765220136014,3.19292625,134.34,134.3,3.84016264]
[1765220136225,3.14,134.32,134.3,3.84016264]
[1765220136424,0.05292625,134.34,134.32,104.2306]
[1765220136726,3.14,134.39,134.33,1.48]
[1765220136921,3.14,134.38,134.31,104.2373]
[1765220137121,3.14,134.38,134.32,104.2304]
[1765220137321,3.14,134.38,134.32,167.4504]
[1765220137522,0.05129552,134.36,134.34,0.04989025]
[1765220138325,104.15,134.43,134.34,104.26429025]
[1765220138326,3.14,134.43,134.34,104.26429025]
[1765220138524,3.14,134.43,134.33,104.218]
[1765220139026,3.14,134.42,134.35,6.6985]
[1765220139332,3.14,134.39,134.37,0.04759038]
[1765220141833,0.05637898,134.4,134.37,0.04759038]
[1765220142027,3.19637898,134.4,134.37,0.04759038]
[1765220146530,3.19637898,134.4,134.3,3.84016264]
[1765220146741,3.14,134.4,134.3,67.08016264]
[1765220147326,3.14,134.37,134.3,108.08346264]
[1765220147532,0.05157155,134.35,134.32,0.05582856]
[1765220147829,3.19157155,134.35,134.32,0.05582856]
[1765220148843,0.05157155,134.35,134.32,0.05582856]
[1765220149933,0.05157155,134.35,134.32,6.75612856]
[1765220150535,3.25,134.34,134.32,0.05582856]
[1765220152528,3.25,134.34,134.3,3.84016264]
[1765220152728,0.05157155,134.35,134.3,3.84016264]
[1765220152729,3.25,134.33,134.3,3.84016264]
[1765220154434,0.05157155,134.35,134.3,9.74353906]
[1765220155135,3.30157155,134.35,134.3,9.74353906]
[1765220155435,0.05157155,134.35,134.3,9.74353906]
[1765220155644,0.05157155,134.35,134.31,104.2377]
[1765220155943,0.05157155,134.35,134.33,6.6997]
[1765220156244,3.25,134.41,134.34,104.2143]
[1765220156441,3.25,134.44,134.34,104.2143]
[1765220156941,3.25,134.44,134.33,173.40327642]
[1765220156942,3.25,134.42,134.33,69.18337642]
[1765220157133,3.3005096,134.39,134.36,0.05237438]
[1765220160429,0.0505096,134.39,134.36,2.53287708]
[1765220160631,3.3805096,134.39,134.36,2.53287708]
[1765220162330,3.3805096,134.39,134.36,0.05237438]
[1765220162734,3.33,134.38,134.36,0.05237438]
[1765220162935,3.33,134.36,134.31,2.4805027]
[1765220163838,0.05275896,134.35,134.31,2.4805027]
[1765220164537,0.05275896,134.35,134.31,9.1813027]
[1765220165246,0.05275896,134.35,134.33,2.4805027]
[1765220165451,3.33,134.42,134.39,2.4805027]
[1765220165637,3.33,134.42,134.36,63.28]
[1765220165942,15.57114346,134.41,134.36,65.7605027]
[1765220166138,5.54494346,134.4,134.36,65.7605027]
[1765220166345,0.04683381,134.39,134.37,0.05270478]
[1765220168646,3.37683381,134.39,134.37,0.05270478]
[1765220169249,3.33,134.37,134.31,67.13400494]
[1765220169448,3.33,134.35,134.31,67.13400494]
[1765220169651,3.33,134.35,134.3,3.84016264]
[1765220169849,3.33,134.33,134.3,3.84016264]
[1765220170236,3.38482627,134.33,134.3,3.84016264]
[1765220171648,3.33,134.31,134.3,3.84016264]
[1765220171838,8.88492059,134.31,134.3,3.84016264]
[1765220172239,8.88492059,134.31,134.3,0.49016264]
[1765220172549,3.33,134.3,134.27,63.26]
[1765220172852,5.55492059,134.29,134.27,63.26]
[1765220173152,3.38572139,134.3,134.27,63.26]
[1765220173346,5.56120795,134.29,134.27,63.26]
[1765220173546,3.38572139,134.3,134.27,63.26]
[1765220173736,3.38572139,134.3,134.2,9.26280247]
[1765220173737,15.59132596,134.29,134.23,6.7049]
[1765220173937,0.05216949,134.27,134.21,63.28]
[1765220174136,0.05216949,134.27,134.19,1.29621008]
[1765220174337,8.90339064,134.26,134.19,104.329]
[1765220174547,0.04898065,134.24,134.19,104.329]
[1765220175557,0.04898065,134.24,134.21,6.7058]
[1765220176354,0.04898065,134.24,134.19,6.7069]
[1765220176752,3.37898065,134.24,134.16,104.3502]
[1765220176948,8.90301657,134.23,134.18,6.7073]
[1765220177153,0.04898065,134.24,134.18,104.3377]
[1765220177462,0.04898065,134.24,134.18,6.7073]
[1765220177657,0.04898065,134.24,134.17,104.3446]
[1765220178157,0.04898065,134.24,134.17,104.3458]
[1765220178354,3.11898065,134.24,134.17,104.3458]
[1765220178555,3.11898065,134.24,134.16,63.28]
[1765220178853,3.07,134.22,134.13,9.26280247]
[1765220179059,3.07,134.18,134.12,104.3858]
[1765220179246,0.05241448,134.19,134.13,6.7099]
[1765220179445,3.12241448,134.19,134.13,6.7099]
[1765220179651,3.07,134.17,134.1,104.4013]
[1765220179858,6.70211548,134.13,134.04,104.4468]
[1765220180051,3.07,134.2,134.13,104.3783]
[1765220180253,3.07,134.24,134.14,167.6692]
[1765220180455,9.77211548,134.21,134.09,104.4067]
[1765220180647,9.77211548,134.21,134.1,63.3]
[1765220180648,3.07,134.18,134.1,63.3]
[1765220180853,8.63121339,134.17,134.09,63.3]
[1765220181052,0.05179791,134.14,134.12,0.05024338]
[1765220181464,3.12179791,134.14,134.12,0.05024338]
[1765220181649,0.05179791,134.14,134.12,0.05024338]
[1765220181856,3.07,134.17,134.12,104.43434338]
[1765220182058,3.07,134.2,134.12,6.76034338]
[1765220182362,3.07,134.18,134.09,167.7066]
[1765220182557,5.54061308,134.17,134.09,63.3]
[1765220182758,3.07,134.15,134.04,167.7645]
[1765220182962,3.07,134.13,134.04,63.32]
[1765220183167,3.07,134.1,134.08,0.04758811]
[1765220183373,3.07,134.1,134.02,167.7819]
[1765220183557,3.07,134.1,134.02,104.4631]
[1765220183751,3.07,134.1,134.01,167.7842]
[1765220183963,3.07,134.1,134.04,104.4483]
[1765220184264,3.07,134.1,134.01,1.29807154]
[1765220184566,3.07,134.07,134.06,0.05179892]
[1765220184754,3.07,134.07,133.98,63.34]
[1765220184963,3.07,134.05,133.98,63.34]
[1765220185153,3.07,134.05,133.98,167.8349]
[1765220185354,3.07,134.05,133.92,104.5374]
[1765220185355,3.07,134.03,133.92,104.5374]
[1765220185651,3.07,134.03,133.93,167.8703]
[1765220185963,0.05445617,134.0,133.93,167.8703]
[1765220186258,0.05445617,134.0,133.93,1.04119479]
[1765220186259,3.12445617,134.0,133.93,1.04119479]
[1765220186454,3.12445617,134.0,133.89,104.5614]
[1765220186660,0.26,133.92,133.87,63.34]
[1765220186957,0.04697798,133.91,133.89,104.5648]
[1765220187160,3.07,133.99,133.88,104.5711]
[1765220187462,3.07,133.97,133.87,167.9169]
[1765220187959,107.5902,133.95,133.87,63.34]
[1765220188263,3.07,133.91,133.82,104.6174]
[1765220188561,3.07,133.91,133.83,104.611]
[1765220188760,3.07,133.91,133.8,177.25700247]
[1765220188969,3.07,133.9,133.81,63.36]
[1765220189158,3.11834154,133.87,133.79,63.36]
[1765220189359,3.11834154,133.87,133.8,104.6326]
[1765220189558,3.11834154,133.87,133.79,168.0198]
[1765220189760,3.11834154,133.87,133.8,111.3618]
[1765220189958,3.07,133.85,133.74,104.6793]
[1765220190156,3.07,133.8,133.74,104.6788]
[1765220190364,6.7224,133.89,133.77,104.6518]
[1765220190550,3.07,133.88,133.76,113.92580247]
[1765220190752,3.07,133.86,133.76,104.6621]
[1765220191054,3.07,133.86,133.77,104.6564]
[1765220191463,3.12061197,133.83,133.8,0.04934824]
[1765220192060,0.05061197,133.83,133.8,0.04934824]
[1765220192264,104.5611,133.9,133.8,0.04934824]
[1765220192265,3.07,133.92,133.85,104.5914]
[1765220192566,3.07,133.96,133.86,167.986]
[1765220192761,3.07,133.96,133.86,6.7235]
[1765220193266,0.04931999,133.92,133.9,0.05637073]
[1765220194562,3.07,133.96,133.91,104.5467]
[1765220194760,3.07,134.0,133.92,63.44]
[1765220195462,3.07,134.0,133.9,104.5546]
[1765220195666,0.05130263,133.96,133.94,0.05570982]
[1765220196068,3.12130263,133.96,133.94,0.05570982]
[1765220197157,3.12130263,133.96,133.87,6.7226]
[1765220197361,3.07,133.96,133.88,63.44]
[1765220197962,3.07,133.96,133.88,168.0131]
[1765220198369,0.0531485,133.93,133.91,0.04887982]
[1765220199675,0.0531485,133.93,133.91,6.76987982]
[1765220200876,0.0531485,133.93,133.91,0.04887982]
[1765220201074,3.1231485,133.93,133.91,0.04887982]
[1765220201781,0.0531485,133.93,133.91,0.04887982]
[1765220204469,3.1231485,133.93,133.91,0.04887982]
[1765220204674,3.1231485,133.93,133.87,63.46]
[1765220204878,3.07,133.93,133.87,63.46]
[1765220205074,3.07,133.97,133.87,168.0401]
[1765220205577,9.7885,133.96,133.87,63.46]
[1765220205780,0.04896569,133.93,133.91,0.04644508]
[1765220206373,3.11896569,133.93,133.91,0.04644508]
[1765220208380,0.04896569,133.93,133.91,0.04644508]
[1765220209087,0.04896569,133.93,133.91,6.76714508]
[1765220209390,3.35,134.01,133.92,104.5412]
[1765220209890,3.35,134.01,133.93,63.48]
[1765220210480,0.04841855,133.98,133.96,0.05044613]
[1765220210885,3.13841855,133.98,133.96,0.05044613]
[1765220211080,3.09,133.97,133.92,63.48]
[1765220211279,3.09,133.97,133.91,63.48]
[1765220211982,3.09,133.96,133.86,9.26280247]
[1765220212186,0.0505424,133.92,133.9,0.04496464]
[1765220212687,3.1405424,133.92,133.9,0.04496464]
[1765220213385,3.09,133.9,133.8,104.6338]
[1765220213592,6.7222,133.89,133.82,6.7253]
[1765220213980,3.09,133.9,133.83,63.48]
[1765220214384,0.0508229,133.88,133.83,63.48]
[1765220214897,0.0508229,133.88,133.84,6.7242]
[1765220215287,3.1408229,133.88,133.84,6.7242]
[1765220215493,0.0508229,133.88,133.83,63.48]
[1765220216088,0.0508229,133.88,133.83,168.0895]
[1765220216291,0.0508229,133.88,133.84,63.48]
[1765220217094,3.1408229,133.88,133.84,63.48]
[1765220217781,3.1408229,133.88,133.81,6.7257]
[1765220217981,3.1408229,133.88,133.81,63.48]
[1765220218181,3.09,133.87,133.79,6.7268]
[1765220218383,3.09,133.85,133.79,63.48]
[1765220218588,3.14320427,133.83,133.77,6.7278]
[1765220218994,3.14320427,133.83,133.76,63.48]
[1765220219192,3.14423081,133.81,133.75,63.48]
[1765220220291,3.14423081,133.81,133.7,104.7093]
[1765220220595,3.13909121,133.77,133.7,63.48]
[1765220220800,3.09,133.76,133.65,104.7514]
[1765220221096,0.0546039,133.72,133.66,168.2252]
[1765220221991,0.0546039,133.72,133.63,104.7649]
[1765220222190,0.05089391,133.69,133.64,63.5]
[1765220222389,0.05089391,133.69,133.64,168.2597]
[1765220222589,0.05089391,133.69,133.64,63.5]
[1765220222796,3.14089391,133.69,133.63,63.5]
[1765220223298,8.58907658,133.68,133.59,104.7973]
[1765220223596,0.04997054,133.65,133.6,63.52]
[1765220223987,0.04997054,133.65,133.62,104.7757]
[1765220224302,3.09,133.77,133.67,104.7356]
[1765220224494,3.09,133.74,133.62,104.7723]
[1765220224691,3.09,133.72,133.66,104.7449]
[1765220224889,3.09,133.7,133.61,104.7801]
[1765220225086,0.04701421,133.67,133.65,104.7526]
[1765220225586,3.09,133.73,133.67,104.7366]
[1765220225790,3.09,133.73,133.65,63.52]
[1765220225988,3.09,133.73,133.66,104.7451]
[1765220226191,3.28,133.76,133.68,104.7285]
[1765220226396,5.51355406,133.75,133.66,104.7451]
[1765220226596,0.05326592,133.72,133.69,0.0519167]
[1765220226992,0.05326592,133.72,133.7,104.7136]
[1765220227195,0.05326592,133.72,133.71,63.54]
[1765220227896,5.52785578,133.78,133.71,168.244]
[1765220228203,8.80785578,133.77,133.72,63.54]
[1765220228496,3.28,133.77,133.72,63.54]
[1765220228702,8.86057574,133.76,133.73,0.05477032]
[1765220229005,0.05094303,133.76,133.73,0.05400092]
[1765220229305,3.33094303,133.76,133.73,0.05400092]
[1765220229597,5.53329453,133.75,133.73,0.05400092]
[1765220229910,3.33094303,133.76,133.73,0.05400092]
[1765220230999,3.28,133.69,133.59,104.799]
[1765220231197,8.8155046,133.68,133.61,104.7839]
[1765220231502,3.28,133.68,133.62,63.54]
[1765220231895,0.05728794,133.66,133.64,0.05027372]
[1765220232094,3.33728794,133.66,133.64,0.05027372]
[1765220232494,3.33728794,133.66,133.58,3.93051776]
[1765220232692,3.28,133.63,133.58,3.93051776]
[1765220233004,3.28,133.61,133.58,3.93051776]
[1765220233397,3.28,133.61,133.49,104.8778]
[1765220233398,3.28,133.59,133.49,104.8778]
[1765220233598,3.33406839,133.55,133.53,0.04738493]
[1765220235206,0.05406839,133.55,133.51,1.11]
[1765220235705,0.05406839,133.55,133.51,105.973]
[1765220235902,3.33406839,133.55,133.51,104.863]
[1765220236102,0.05406839,133.55,133.53,104.8471]
[1765220236298,0.05406839,133.55,133.53,1.11]
[1765220236498,5.96301284,133.63,133.54,105.9464]
[1765220236499,9.24301284,133.63,133.54,105.9464]
[1765220236698,3.28,133.63,133.54,105.9464]
[1765220237208,3.28,133.63,133.55,105.9408]
[1765220237414,3.28,133.63,133.57,104.8152]
[1765220237601,0.05369954,133.61,133.59,0.05406839]
[1765220237802,0.05207887,133.61,133.59,0.05406839]
[1765220238005,0.05207887,133.61,133.59,7.90086839]
[1765220238901,0.05207887,133.61,133.59,0.05406839]
[1765220239302,3.18207887,133.61,133.59,0.05406839]
[1765220239505,3.13,133.6,133.59,0.05406839]
[1765220239708,3.13,133.59,133.52,6.7405]
[1765220239914,3.13,133.58,133.51,1.11]
[1765220240410,3.13,133.58,133.5,6.7415]
[1765220240804,0.04957163,133.55,133.5,6.7415]
[1765220241010,0.04957163,133.55,133.5,7.9015]
[1765220242407,3.17957163,133.55,133.5,7.9015]
[1765220243805,0.04957163,133.55,133.51,7.9009]
[1765220244213,0.04957163,133.55,133.51,1.16]
[1765220244506,0.04957163,133.55,133.49,70.3619]
[1765220244507,3.17957163,133.55,133.49,63.62]
[1765220244698,3.17957163,133.55,133.48,63.62]
[1765220245405,3.17957163,133.55,133.47,64.8]
[1765220245610,3.17957163,133.55,133.48,1.16]
[1765220246010,0.04957163,133.55,133.51,7.9011]
[1765220246208,0.04957163,133.55,133.52,1.16]
[1765220249110,0.04957163,133.55,133.53,1.16]
[1765220250311,3.17957163,133.55,133.46,1.16]
[1765220250517,0.05241541,133.52,133.47,64.8]
[1765220250717,0.05241541,133.52,133.48,1.16]
[1765220252213,0.05241541,133.52,133.48,64.8]
[1765220252614,0.05241541,133.52,133.49,1.16]
[1765220253908,0.05241541,133.52,133.5,1.16]
[1765220254515,3.18241541,133.52,133.44,1.16]
[1765220254815,0.05490681,133.49,133.44,1.16]
[1765220255716,0.05490681,133.49,133.44,7.9044]
[1765220256219,3.18490681,133.49,133.44,7.9044]
[1765220256413,3.18490681,133.49,133.43,63.66]
[1765220256804,3.18490681,133.49,133.42,6.7455]
[1765220257010,3.13,133.48,133.41,1.16]
[1765220257207,3.18527195,133.46,133.41,1.16]
[1765220257407,3.18527195,133.46,133.34,104.9947]
[1765220257408,3.13,133.41,133.33,1.16]
[1765220257619,0.05250083,133.38,133.36,1.16]
[1765220257817,0.05353678,133.38,133.36,1.16]
[1765220258006,0.05353678,133.38,133.34,1.16]
[1765220258213,6.80153678,133.38,133.3,6.7516]
[1765220258407,0.05065899,133.35,133.32,1.16]
[1765220258615,0.0494756,133.35,133.32,1.16]
[1765220258918,3.13,133.42,133.33,7.12301284]
[1765220259123,3.13,133.42,133.34,1.16]
[1765220259319,6.7465,133.41,133.34,1.16]
[1765220259622,108.0667,133.42,133.34,1.16]
[1765220259812,9.8759,133.42,133.34,1.16]
[1765220260013,0.05630321,133.39,133.37,0.0494756]
[1765220261118,175.21413712,133.48,133.37,0.0494756]
[1765220261119,3.13,133.5,133.41,106.0964]
[1765220261318,108.0041,133.5,133.42,1.16]
[1765220261717,3.13,133.5,133.42,1.16]
[1765220262023,0.04786183,133.47,133.45,0.04816791]
[1765220262219,3.13,133.53,133.45,1.20816791]
[1765220262414,3.13,133.53,133.46,64.84]
[1765220262723,5.47525788,133.55,133.46,64.84]
[1765220262921,3.13,133.54,133.47,1.16]
[1765220263218,0.05353497,133.52,133.49,0.04894709]
[1765220263418,3.18353497,133.52,133.49,0.04894709]
[1765220263622,9.92443497,133.52,133.49,0.04894709]
[1765220264010,9.92443497,133.52,133.49,1.20894709]
[1765220264011,0.05353497,133.52,133.49,1.20894709]
[1765220264519,0.05353497,133.52,133.5,1.16]
[1765220264922,0.05353497,133.52,133.49,0.04894709]
[1765220264923,3.18353497,133.52,133.49,0.04894709]
[1765220265218,3.18353497,133.52,133.42,1.16]
[1765220265219,113.50731144,133.51,133.42,1.16]
[1765220265415,113.51511144,133.5,133.42,1.16]
[1765220265721,104.893,133.48,133.36,1.16]
[1765220265931,108.041,133.45,133.37,1.16]
[1765220266114,5.51115464,133.44,133.37,1.16]